Cogmind - Beta 16.1 @@@ ROGUE MODE // 2026.02.12 @ 09:54:16 Player: SunShine214 Result: Destroyed by S-10 Pest with Light Assault Rifle Performance ------------- Evolutions (0) 0 Regions Visited (2) 400 Robots Destroyed (30) 150 Value Destroyed (580) 580 Prototype IDs (0) 0 Alien Tech Used (0) 0 Bonus (0) 0 TOTAL SCORE: 1130 Bonus ------- None Cogmind --------- Core Integrity 0/250 Matter 290/300 Energy 100/100 System Corruption 0% Temperature Cool (0) Movement Walking (120) Location -10/Mines Parts ------- > --- POWER (1) -------- (None) > --- PROPULSION (2) --- Aluminum Leg Aluminum Leg > --- UTILITY (2) ------ Small Storage Unit Light Armor Plating > --- WEAPON (2) ------- Assault Rifle Mining Claw > --- INVENTORY (8) ---- Light Ion Engine Flight Unit Flight Unit Flight Unit Sensor Array Hacking Suite EM Pulse Gun Assault Rifle Peak State ------------ > --- POWER ------------ Light Nuclear Core > --- PROPULSION ------- Light Treads Light Treads > --- UTILITY ---------- Small Storage Unit Improved Terrain Scanner > --- WEAPON ----------- Assault Rifle Assault Rifle > --- INVENTORY -------- Light Ion Engine Light Ion Engine Flight Unit Flight Unit Flight Unit Hacking Suite EM Pulse Gun Mining Laser [Rating: 12] Favorites ----------- Power Ion Engine Engine Ion Engine Power Core Light Nuclear Core Propulsion Light Treads Treads Light Treads Leg Aluminum Leg Utility Small Storage Unit Device Improved Terrain Scanner Storage Small Storage Unit Processor Signal Interpreter Protection Light Armor Plating Weapon Assault Rifle Ballistic Gun Assault Rifle Slashing Weapon Mining Claw Build | -11 -10 -10 ------- Run | Yrd Mat Min Slots Evolved . | . . . Power . | . . . Propulsion . | . . . Utility . | . . . Weapon . | . . . Parts Attached 17 | 7 6 4 Power 3 | 1 2 . Engine 2 | 1 1 . Core 1 | . 1 . Reactor . | . . . Propulsion 4 | 2 . 2 Treads 2 | 2 . . Leg 2 | . . 2 Wheel . | . . . Hover . | . . . Flight . | . . . Utility 5 | 2 1 2 Device 2 | 1 . 1 Storage 1 | 1 . . Processor 1 | . 1 . Hackware . | . . . Protection 1 | . . 1 Artifact . | . . . Weapon 5 | 2 3 . Energy Gun . | . . . Energy Cannon . | . . . Ballistic Gun 4 | 2 2 . Ballistic Cannon . | . . . Launcher . | . . . Special Weapon . | . . . Impact Weapon . | . . . Slashing Weapon 1 | . 1 . Piercing Weapon . | . . . Special Melee Weapon . | . . . Unidentified Prototypes . | . . . Parts Lost 4 | . 2 2 Power 2 | . 1 1 Propulsion 2 | . 1 1 Utility . | . . . Weapon . | . . . Highest Loss Streak 1 | . 1 1 To Critical Strikes 1 | . 1 . Average Backups 6 | 1 7 7 Power 1 | . 1 1 Propulsion 1 | . 2 2 Utility 1 | . 1 2 Weapon 1 | . 2 2 Tool/Special . | . . . Unused Backups 7 | . 3 4 Power 1 | . 1 . Propulsion 3 | . 1 2 Utility 1 | . . 1 Weapon 2 | . 1 1 Tool/Special . | . . . Average Slot Usage (%) 91 | . 94 84 Engine 8 | . 11 1 Core 1 | . 1 . Treads 16 | . 22 . Leg 7 | . . 25 Device 6 | . 4 10 Storage 14 | . 14 14 Processor 7 | . 9 2 Ballistic Gun 17 | . 18 14 Slashing Weapon 10 | . 9 14 Peak Build Rating 12 | 9 12 7 Average Rating 7 | 6 8 6 On Entrance 5 | . 9 7 Avg Prop Armor Cover (%) . | . . . Naked Turns . | . . . Heaviest Build 15 | 13 15 14 Greatest Support 40 | 40 40 20 Greatest Overweight (x) 4 | . . 4 Average Overweight (x) . | . . . Largest Inventory Capacity 8 | 8 8 8 Average Capacity 7 | 7 8 8 Most Carried 8 | 3 8 8 Average Carried 6 | 1 7 7 Final Capacity 8 | 8 8 8 Final Carried 8 | 3 8 8 Class Distribution -------------------- 100% | Mutant Dominant Class ---------------- Mutant | -10/Materials Mutant | -10/Mines Resources | -11 -10 -10 ----------- Run | Yrd Mat Min Matter Collected 717 | 343 319 55 Remotely . | . . . Salvage Created 871 | 139 593 139 Parts 66 | 11 46 9 Haulers Intercepted 1 | . 1 . Recyclers Shooed . | . . . Parts Field Recycled . | . . . Retrieved Matter . | . . . Parts Self-Destructed . | . . . Prevented . | . . . Parts Restored . | . . . Kills | -11 -10 -10 ------- Run | Yrd Mat Min Combat Hostiles Destroyed 17 | . 15 2 Melee 5 | . 4 1 Guns 12 | . 11 1 Classes Destroyed 7 | 2 5 . Worker 2 | . 2 . Tunneler 6 | 3 1 2 Hauler 1 | . 1 . Recycler 1 | 1 . . Operator 3 | . 3 . Swarmer 6 | . 6 . Grunt 11 | . 9 2 Best Kill Streak 3 | 1 3 1 Combat Bots Only 3 | . 3 1 Max Kills in Single Turn 2 | 1 2 1 Gunslinging 1 | . 1 . Exploded . | . . . Melee 1 | . 1 1 Uniques/NPCs Destroyed . | . . . Combat | -11 -10 -10 -------- Run | Yrd Mat Min Hostile Shots Fired 107 | . 69 38 Missed 22 | . 15 7 Hits 85 | . 54 31 Projectile 85 | . 54 31 Critical Strikes 1 | . 1 . Damage Taken 950 | . 530 420 Core 251 | . 92 159 Absorbed by Shields . | . . . Core Remaining (%) 100 | 100 . . Volleys Fired 71 | 17 48 6 Largest 2 | 2 2 1 Hottest 40 | 40 40 20 Shots Fired 123 | 34 83 6 Gun 123 | 34 83 6 Cannon . | . . . Launcher . | . . . Special . | . . . Kinetic 123 | 34 83 6 Thermal . | . . . Explosive . | . . . Electromagnetic . | . . . Robot Hit Streak 14 | 9 14 6 Robot Miss Streak 5 | 5 5 . Penetration Max . | . . . Secondary Targets 2 | . 2 . Max Gunslinging Chain 1 | . 1 . Shots Hit Robots 96 | 18 66 12 Core Hits 38 | 5 29 4 Critical Kills . | . . . Critical Parts Destroyed . | . . . Critical Strikes . | . . . Melee Attacks 38 | . 25 13 Impact . | . . . Slashing 38 | . 25 13 Piercing . | . . . Sneak Attacks 8 | . 6 2 Combat Hostiles . | . . . Follow-up Attacks . | . . . Damage Inflicted 1679 | 246 1188 245 Guns 960 | 246 637 77 Cannons . | . . . Explosions . | . . . Melee 718 | . 550 168 Ramming 1 | . 1 . Kinetic 960 | 246 637 77 Thermal . | . . . Explosive . | . . . Electromagnetic . | . . . Impact . | . . . Slashing 718 | . 550 168 Piercing . | . . . Highest Corruption . | . . . Average Corruption . | . . . Corruption Purged . | . . . Corruption Blocked . | . . . Overload Shots . | . . . Overflow Damage 98 | . 61 37 Projectiles . | . . . Explosions . | . . . Melee 98 | . 61 37 Knockbacks . | . . . Impact . | . . . Kinetic . | . . . Secondary . | . . . Self-Inflicted Damage . | . . . Shots . | . . . Rammed 1 | . 1 . Targets Rammed 1 | . 1 . Kicked . | . . . Crushed . | . . . Highest Temperature 6 | . 6 . Average Temperature 2 | . 2 . Received Heat Transfer 417 | . 186 231 Siege Activations . | . . . Martial Activations . | . . . Shielding Activations . | . . . Robots Disrupted . | . . . Combat Hostiles . | . . . Robots Corrupted . | . . . Combat Hostiles . | . . . Parts Fried . | . . . Impact Corruptions . | . . . Robots Melted . | . . . Combat Hostiles . | . . . Parts Melted . | . . . Heat Transferred . | . . . Parts Sabotaged . | . . . Parts Stolen . | . . . Parts Stripped . | . . . Power Chain Reactions . | . . . Alert | -11 -10 -10 ------- Run | Yrd Mat Min Maximum Alert Level . | . . . Low Security (%) 100 | 100 100 100 Level 1 . | . . . Level 2 . | . . . Level 3 . | . . . Level 4 . | . . . Level 5 . | . . . High Security . | . . . Max Security . | . . . Peak Influence 168 | 5 168 30 Initial 12 | . . 12 Average 35 | 1 55 3 Influence Increases 590 | 20 510 60 Destroy 0b10 Robot/C 340 | . 300 40 Destroy 0b10 Robot/NC 65 | 20 35 10 Destroy Leader 82 | . 72 10 Successful Hack 7 | . 7 . Disable Machine 30 | . 30 . Destroy Structure 6 | . 6 . Lose Combat Pursuer 60 | . 60 . Influence Decreases 590 | 20 478 92 Entered New Map 20 | . . 20 Time Decay 409 | 20 327 62 Lost Part 20 | . 10 10 Purge Threat 141 | . 141 . Squads Dispatched 4 | . 4 . Investigation 1 | . 1 . Extermination . | . . . Reinforcement 3 | . 3 . Assault . | . . . Garrison . | . . . Intercept . | . . . Searches Triggered . | . . . Construction Impeded . | . . . Haulers Reinforced . | . . . Active Scanning Responses . | . . . Cargo Convoy Interrupts . | . . . Stealth | -11 -10 -10 --------- Run | Yrd Mat Min Distress Signals 2 | . 2 . Communications Jammed . | . . . Distress Signals . | . . . Times Spotted 30 | . 25 5 Peak Tracking Total 4 | . 4 2 Tactical Retreats 2 | . 2 . Traps | -11 -10 -10 ------- Run | Yrd Mat Min Traps Triggered 1 | . 1 . Indirectly . | . . . Trap Hack Attempts . | . . . Triggered . | . . . Disarmed . | . . . Reprogrammed . | . . . Reused . | . . . Traps Extracted . | . . . Installed . | . . . Triggered . | . . . Machines | -11 -10 -10 ---------- Run | Yrd Mat Min Machines Disabled 2 | . 2 . Max in Single Turn 1 | . 1 . Machines Repaired . | . . . Machines Dismantled . | . . . Machines Sabotaged . | . . . Overloaded Fab Kills . | . . . Hacking | -11 -10 -10 --------- Run | Yrd Mat Min Machines Accessed 5 | . 5 . Terminals 4 | . 4 . Fabricators . | . . . Repair Stations . | . . . Recycling Units 1 | . 1 . Scanalyzers . | . . . Garrison Access . | . . . Total Hacks 10 | . 10 . Successful 4 | . 4 . Failed 6 | . 6 . Catastrophic 1 | . 1 . Database Lockouts . | . . . Manual 5 | . 5 . Terminals 8 | . 8 . Fabricators . | . . . Repair Stations . | . . . Recycling Units 2 | . 2 . Scanalyzers . | . . . Garrison Access . | . . . Terminal Hacks 3 | . 3 . Alert Level 1 | . 1 . Unreport Threat 1 | . 1 . Registered Components 1 | . 1 . Fabricator Hacks . | . . . Repair Station Hacks . | . . . Recycling Unit Hacks 1 | . 1 . Retrieve Components 1 | . 1 . Scanalyzer . | . . . Garrison Access Hacks . | . . . Unauthorized Hacks . | . . . Terminals . | . . . Fabricators . | . . . Repair Stations . | . . . Recycling Units . | . . . Scanalyzers . | . . . Garrison Access . | . . . Data Cores Recovered . | . . . Used . | . . . Hacking Detections 4 | . 4 . Full Trace Events . | . . . Feedback Events . | . . . Feedback Blocked . | . . . Robot Schematics Acquired . | . . . Robots Built . | . . . Authchips . | . . . Time . | . . . Total Robot Build Rating . | . . . Part Schematics Acquired . | . . . Parts Built . | . . . Authchips . | . . . Time . | . . . Total Part Build Rating . | . . . Part Studies Acquired . | . . . Parts Repaired . | . . . Time . | . . . Parts Recycled . | . . . Recycled Matter . | . . . Retrieved Matter . | . . . Retrieved Components 6 | . 6 . Parts Scanalyzed . | . . . Part Schematics Acquired . | . . . Parts Damaged . | . . . Bothacking | -11 -10 -10 ------------ Run | Yrd Mat Min Used RIF Installer . | . . . Robots Hacked . | . . . Non-combat . | . . . Combat . | . . . Robot Hacks Applied . | . . . Relay Couplers Released . | . . . Fabnet Peak Effective % . | . . . Robots Rewired . | . . . Allies Hacked . | . . . Hacks Repelled . | . . . Allies | -11 -10 -10 -------- Run | Yrd Mat Min Total Allies . | . . . Largest Group . | . . . Highest-Rated Group . | . . . Highest-Rated Ally . | . . . Total Orders . | . . . Ally Attacks . | . . . Total Damage . | . . . Kills . | . . . Allies Corrupted . | . . . Allies Melted . | . . . Intel | -11 -10 -10 ------- Run | Yrd Mat Min Active Infowar (turns) 895 | 76 415 404 Sensors 404 | . . 404 Terrain 491 | 76 415 . Robot Analysis Total . | . . . Derelict Logs Recovered . | . . . Drone Launches . | . . . Drone Recoveries . | . . . Exploration | -11 -10 -10 ------------- Run | Yrd Mat Min Turns Passed 1883 | 192 1176 515 Spaces Moved 772 | 81 568 123 Core 2 | 1 . 1 Treads 654 | 80 568 6 Legs 116 | . . 116 Wheels . | . . . Hover . | . . . Flight . | . . . Fastest Speed 50 | 50 160 120 Average Speed 154 | 158 160 124 Slowest Speed 250 | 160 160 250 Overloaded Moves . | . . . Propulsion Burnouts . | . . . Robots Hopped . | . . . Potential Cave-ins . | . . . Cave-ins Triggered . | . . . Exploration Rate (%) 40 | 5 85 32 Regions Visited 2 Branch Regions 1 Pre-discovered Areas . | . . . Known Exits Taken 1 | . 1 . Unknown Exits Taken 1 | 1 . . Scrap Searched 1 | . . 1 Spaces Dug 5 | . 5 . Terrain Destroyed 5 | . 5 . Melee 5 | . 5 . Projectile . | . . . AOE . | . . . Terrain Rammed . | . . . Walls Destroyed . | . . . Machines Disabled . | . . . Actions | -11 -10 -10 --------- Run | Yrd Mat Min Total 1261 | 107 703 451 Wait 347 | . 42 305 Move 770 | 80 567 123 Hop . | . . . Pick Up 11 | 3 8 . Fast Attach 10 | 7 1 2 Attach . | . . . Detach . | . . . Swap 7 | . 5 2 Drop 6 | . 6 . Fire 71 | 17 48 6 Melee 38 | . 25 13 Ram . | . . . Kick . | . . . Crush 1 | . 1 . Escape Stasis . | . . . Rewire . | . . . Trap . | . . . Miscellaneous . | . . . Route ------- -11/Scrapyard -10/Materials (discovered 3 exits: *Mat x2 / *Min) -10/Mines (discovered 1 exit: *Mat) History --------- Turn | Location | Event 11 | -11/Scrapyard | Discovered new exit (range 15) 193 | -11/Scrapyard | Entered Materials 308 | -10/Materials | Build established: Mutant 362 | -10/Materials | Discovered new exit (range 5) 409 | -10/Materials | Discovered new exit (range 16) 794 | -10/Materials | Discovered new exit (range 13) 813 | -10/Materials | Identified exit to Materials 1323 | -10/Materials | Identified exit to Mines 1369 | -10/Materials | Entered Mines 1392 | -10/Mines | Core integrity fell below 50% 1425 | -10/Mines | Core integrity fell below 20% 1474 | -10/Mines | Discovered exit to Materials (range 12) 1884 | -10/Mines | Destroyed by S-10 Pest with Light Assault Rifle Last Messages --------------- 01442_ K-01 Serf collects debris. 01445_ K-01 Serf cleans the Seismic Survey Station. 01450_ K-01 Serf collects debris. 01454_ Discarded Signal Interpreter. 01464_ Sneak attack on T-07 Excavator. 01464_ Destroyed Mining Laser. 01464_ T-07 Excavator destroyed. 01467_ Acquired 10 matter. 01474_ EXIT=FOUND: MATERIALS 01546_ Searching scrap... 01546_ Found Mining Laser. 01546_ Found Com. Wheel. 01546_ Found Signal Interpreter. 01546_ Found 35 Matter. 01562_ Sneak attack on T-07 Excavator. 01562_ Destroyed Mining Laser. 01562_ T-07 Excavator destroyed. 01878_ S-10 Pest destroyed. 01879_ S-10 Pest Flight Unit ripped off. Map ----- +----------------------------------------------------+ | ????????????????????????????????????# | | ????????????????????????????????????# ## ### | | ????????????????????????????????????# #######?# | | ????????????????????????????????????## #???????# | | ?????????????????????????????????????## ##??????# | | ??????????????????????????????????????# ##?????# | | ??????????????????????????????????????# #?????# | | ??????????????????????????????????????# #?????# | | ??????????????????????????????????????## ##????# | | ???????????????????????????????????????## #????? | | ???????????????????????????????????????## #???## | | ???????????????????????????????????????# ##???# | | ???????????????????????????????????????# #????#" | | ???????????????????????????????????????## #????#" | | ???????????????????????????????????????## ##???#" | | ???????????????????????????????????????# #???# | | ???????????????????????????????????????# ##??#" | | ???????????????????????????????????????# ##?#" | | ???????????????????????????????????????## #?#" | | ????????????????????????????????????????## #?# | | ?????????????????????????????????????????## ###" | | ??????????????????????????????????????????# ##" | | ??????????????????????????????##?????????## #" | | ?????????????????????????##### #??????#### # | | ???????????????????# ##### #??????# # | | ???????????????????# s@ #??????# ## ### | | ???????????????????######% #???#### ##### #?? | | ????????????????????????#s #??## !|#???# #?? | | ????????????????????????# #?## %#???# ### | | ????????????????????????## #?# = ##### | | ?????????????????????????### #?# ##### | | ???????????????????????????## #?##### #??# | | ????????????????????????????# #?????## ##### | | ????????????????????????????# ######## """ | | ????????????????????????????# !%! """ | | ????????????????????????????########## """ ##### | | ?????????????????????????????????????# ##???# | | ?????????????????????????????????????# ##????? | | ?????????????????????????????????????## ##?????? | | ??????????????????????????????????????#####??????? | | ?????????????????????????????????????????????????? | | ?????????????????????????????????????????????????? | | ?????????????????????????????????????????????????? | | ?????????????????????????????????????????????????? | | ?????????????????????????????????????????????????? | | ?????????????????????????????????????????????????? | | ?????????????????????????????????????????????????? | | ?????????????????????????????????????????????????? | | | | | +----------------------------------------------------+ Best States ------------- Heat Dissipation 25 Energy Generation 14 Energy Capacity 250 Matter Stores 300 Matter Capacity 300 Sight Range 16 Robot Scan Range 14 Terrain Scan Range 16 Terrain Scan Density 10 Armor Coverage 150 Evasion (%) 55 Recoil Reduction 2 Item Schematics ----------------- None Robot Schematics ------------------ None Fabricated ------------ Nothing Repaired ---------- Nothing Studied --------- None Alien Tech Used ----------------- None Achievements -------------- None Challenges ------------ None Game ------ Seed IonicSlugRedirector Manual? 0 Play Time 00:11:19 Cumulative 65.1 hours Start 2026.02.12 @ 09:40:51 End 2026.02.12 @ 09:54:16 Sessions 1 Manual Loads 0 Difficulty Rogue Special Mode None Game No. 112 Rogue 112 Adventurer 0 Explorer 0 Win Type - Total 0 Types 0/0/0/0/0/0/0/0/0/0 Lore% 35 Gallery% 40 Achievement% 29 Wizard Run 0 Options --------- Layout 1 ASCII 0 Keyboard 1 Movement Arrows Keybinds 0 Fullscreen 1 Font 24/Smallcaps Map View 50x35 Zoom Use 0% Tactical HUD 1 Map Filters NONE Filters NONE Steam 1 RUN: ac8abe53-df99-49a9-8ae5-7d634df8af74